fUSD/lending_fUSD_20240319
["ID","MTS","AMOUNT","RATE_DAILY","PERIOD"]
[319520018,1710820233373,-252.1,0.00020529,2]
[319520047,1710820233383,-239.43,0.00020548,2]
[319520048,1710820233735,-155.78,0.00020866,2]
[319520049,1710820233745,-784.54,0.00020867,2]
[319520050,1710820233758,-170.07,0.00021096,2]
[319520051,1710820233767,-356.88957724,0.00021491,2]
[319520052,1710820233776,-155.78,0.00021596,2]
[319520053,1710820233785,-249.65614262,0.00021778,2]
[319520054,1710820233795,-151.43,0.00021918,10]
[319520055,1710820233804,-4000.0,0.00021918,2]
[319520056,1710820233813,-250.0,0.00021918,2]
[319520057,1710820233822,-618.96185358,0.00021998,2]
[319520058,1710820233832,-1883.28731315,0.00021998,2]
[319520059,1710820233841,-47586.20442633,0.00022,7]
[319520060,1710820233851,-472.93525651,0.0002217,2]
[319520061,1710820233861,-155.78,0.00022326,2]
[319520062,1710820233870,-252.1,0.00022395,2]
[319520063,1710820233879,-47307.49651492,0.00022485,2]
[319520064,1710820233888,-2500.0,0.000225,2]
[319520065,1710820233897,-600.0,0.000225,2]
[319520066,1710820233906,-156.77,0.00022625,2]
[319520067,1710820233915,-784.54,0.00022764,2]
[319520068,1710820233925,-267.3106379,0.00024706,2]
[319520069,1710820233934,-648.0,0.000248,2]
[319520070,1710820233944,-156.77,0.00024889,2]
[319520071,1710820233953,-168.33105284,0.00025743,2]
[319520072,1710820233963,-169.36485228,0.00026263,2]
[319520073,1710820233972,-168.33105284,0.00026281,2]
[319520074,1710820233981,-169.36485228,0.00026672,2]
[319520075,1710820233990,-300.0,0.00026987,2]
[319520076,1710820234001,-156.77,0.00027153,2]
[319520077,1710820234010,-182.0616026,0.00027262,2]
[319520078,1710820234019,-472.93525651,0.00027727,3]
[319520079,1710820234028,-398.15,0.00027945,2]
[319520080,1710820234037,-168.33105284,0.00028139,2]
[319520081,1710820234046,-29999.99,0.00028203,2]
[319520082,1710820234056,-12856.85,0.00028203,2]
[319520083,1710820234066,-168.33105284,0.000284,2]
[319520084,1710820234075,-156.77,0.00029416,2]
[319520085,1710820234085,-439.45895503,0.000295,3]
[319520086,1710820234094,-272.15,0.0002969,2]
[319520087,1710820234104,-168.33105284,0.00029948,2]
[319520088,1710820234113,-155.0,0.0003,4]
[319520089,1710820234122,-1098.6591993,0.0003,4]
[319520090,1710820234131,-151.43,0.00030137,10]
[319520091,1710820234141,-164.41635084,0.00030473,7]
[319520092,1710820234151,-153.85,0.00031013,120]
[319520093,1710820234160,-334.39916054,0.00031278,15]
[319520094,1710820234169,-400.0,0.00031307,2]
[319520095,1710820234179,-151.16603036,0.00031509,7]
[319520096,1710820234188,-156.77,0.0003168,2]
[319520097,1710820234198,-3100.0,0.000327,11]
[319520098,1710820234207,-168.33105284,0.0003276,7]
[319520099,1710820234216,-4600.0,0.000328,11]
[319520100,1710820234226,-152.68450621,0.000328,2]
[319520101,1710820234236,-715.32259171,0.000328,2]
[319520102,1710820234245,-4972.78517893,0.000328,2]
[319520103,1710820234258,-193.53704174,0.000328,6]
[319520104,1710820234268,-173.47304012,0.000328,2]
[319520105,1710820234278,-267.3106379,0.000328,6]
[319520106,1710820234288,-8696.85481243,0.000328,2]
[319520107,1710820234297,-216.78377606,0.00032828,2]
[319520108,1710820234307,-152.59,0.0003287,15]
[319520109,1710820234317,-150.5,0.0003288,15]
[319520110,1710820234328,-150.5,0.0003289,15]
[319520111,1710820234338,-71893.65236163,0.000329,7]
[319520113,1710820234971,-3472.68103299,0.000329,7]
[319520114,1710820234985,-52199.63055204,0.000329,7]
[319520115,1710820234998,-405.1900816,0.000329,7]
[319520116,1710820235040,-6501.20000001,0.000329,7]
[319520117,1710820235053,-5424.98708854,0.000329,7]
[319520118,1710820235088,-307.47652922,0.000329,7]
[319520148,1710820237986,-158.13291202,0.00015005,2]
[319520153,1710820237996,-118.48720533,0.00015005,2]
[319520161,1710820238025,-11212.45216354,0.00015005,2]
[319520164,1710820238034,-155.0,0.00015005,2]
[319520166,1710820238044,-1256944.58351441,0.000329,7]
[319520169,1710820238056,-682.9189,0.000329,7]
[319520172,1710820238067,-850.0,0.000329,7]
[319520174,1710820238079,-853.99705494,0.000329,7]
[319520179,1710820238112,-682.01544483,0.000329,7]
[319520181,1710820238124,-648.40088108,0.000329,7]
[319520183,1710820238136,-253.34682046,0.000329,7]
[319520185,1710820238147,-7252.49894409,0.000329,7]
[319520188,1710820238159,-32500.0,0.000329,7]
[319520190,1710820238170,-5879.455558,0.000329,7]
[319520196,1710820238236,-771.5745918,0.000329,7]
[319520197,1710820238248,-3688.27778885,0.000329,7]
[319520198,1710820238262,-5439.7648,0.000329,7]
[319520199,1710820238299,-2948.23055525,0.000329,7]
[319520200,1710820238311,-7442.804616,0.000329,7]
[319520201,1710820238352,-439.617024,0.000329,7]
[319520202,1710820238364,-18437.03151228,0.000329,7]
[319520203,1710820238389,-326.326,0.000329,7]
[319520204,1710820238418,-13052.4,0.000329,7]
[319520205,1710820238431,-461877.84453058,0.000329,7]
[319520214,1710820240153,-3690.92680002,0.000329,7]
[319520215,1710820240166,-2252.7483372,0.000329,7]
[319520216,1710820240178,-645.18180464,0.000329,7]
[319520217,1710820240191,-292.85601819,0.000329,7]
[319520218,1710820240203,-284.95660577,0.000329,7]
[319520219,1710820240215,-575.34287597,0.000329,7]
[319520220,1710820240228,-386.71394944,0.000329,7]
[319520221,1710820240240,-347.66134713,0.000329,7]
[319520222,1710820240256,-914.99991,0.000329,7]
[319520223,1710820240281,-6514.69272849,0.000329,7]
[319520224,1710820240343,-557.38108761,0.000329,7]
[319520225,1710820240355,-2308.77156697,0.000329,7]
[319520226,1710820240427,-389.44550813,0.000329,7]
[319520227,1710820240440,-290.78553,0.000329,7]
[319520228,1710820240530,-7127.6,0.000329,7]
[319520229,1710820240610,-326.69181877,0.000329,7]
[319520254,1710820243073,-484.75999458,0.000329,7]
[319520260,1710820243148,-6175.76803054,0.000329,7]
[319520262,1710820243158,-6200.0,0.000329,12]
[319520264,1710820243168,-472.93525651,0.00033285,6]
[319520266,1710820243178,-425.25122764,0.00033863,4]
[319520268,1710820243189,-201.05935657,0.0003388,4]
[319520269,1710820243199,-292.96015511,0.0003388,4]
[319520270,1710820243211,-196.77183842,0.0003388,4]
[319520271,1710820243221,-235.79313519,0.0003388,4]
[319520272,1710820243232,-678.98981162,0.0003388,4]
[319520273,1710820243241,-3046.60911697,0.0003388,4]
[319520274,1710820243251,-155.63725473,0.0003388,4]
[319520275,1710820243265,-155.39131758,0.0003388,4]
[319520276,1710820243275,-155.27986832,0.0003388,4]
[319520277,1710820243285,-205.8056589,0.0003388,4]
[319520278,1710820243295,-444.7076028,0.0003388,4]
[319520279,1710820243305,-219.80345162,0.00033881,4]
[319520280,1710820243314,-928.34378406,0.00033881,4]
[319520281,1710820243325,-500.0,0.00033882,2]
[319520282,1710820243336,-156.77,0.00033944,2]
[319520283,1710820243346,-1000.0,0.00033982,2]
[319520284,1710820243356,-1000.0,0.00033982,2]
[319520285,1710820243366,-1000.0,0.00033982,2]
[319520286,1710820243377,-1000.0,0.00033982,2]
[319520287,1710820243387,-1000.0,0.00033982,2]
[319520288,1710820243397,-1000.0,0.00033982,2]
[319520289,1710820243408,-260.1464387,0.00033982,2]
[319520290,1710820243420,-739.8535613,0.00033982,2]
[319520291,1710820243430,-335.0,0.00033982,2]
[319520292,1710820243440,-168.33105284,0.00034383,7]
[319520293,1710820243450,-150.0,0.00034548,10]
[319520294,1710820243460,-169.36485228,0.0003474,7]
[319520295,1710820243470,-1000.0,0.00035046,2]
[319520296,1710820243480,-400.0,0.0003522,2]
[319520297,1710820243490,-183.19,0.00035251,2]
[319520298,1710820243499,-164.41635084,0.0003569,7]
[319520299,1710820243512,-168.33105284,0.00035789,7]
[319520300,1710820243522,-168.33105284,0.0003579,7]
[319520301,1710820243531,-180.14502318,0.00035953,2]
[319520302,1710820243541,-2302.21537281,0.00036051,4]
[319520303,1710820243550,-468.34366984,0.00036051,4]
[319520304,1710820243560,-346.57934051,0.00036051,4]
[319520305,1710820243569,-334.39916054,0.00036051,30]
[319520306,1710820243578,-334.39916054,0.00036051,30]
[319520307,1710820243588,-334.39916054,0.00036051,30]
[319520308,1710820243597,-334.39916054,0.00036051,30]
[319520309,1710820243607,-334.39916054,0.00036051,30]
[319520310,1710820243616,-334.39916054,0.00036052,30]
[319520311,1710820243626,-3097.44,0.00036053,2]
[319520313,1710820243635,-6398.91528982,0.00036053,2]
[319520315,1710820243648,-4568.32613198,0.00036053,2]
[319520316,1710820243661,-36282.2080635,0.00036053,2]
[319520317,1710820243673,-1959.862905,0.00036053,2]
[319520318,1710820243689,-633.23525529,0.00036053,2]
[319520319,1710820243703,-2245.359605,0.00036053,2]
[319520320,1710820243824,-944.02204542,0.00036053,2]
[319520321,1710820243837,-6605.85436787,0.00036053,2]
[319520322,1710820243848,-25223.24851083,0.00036053,2]
[319520323,1710820243861,-258.59882607,0.00036053,2]
[319520324,1710820243886,-5000.0,0.00036053,2]
[319520325,1710820243918,-4379.74660213,0.00036053,2]
[319520326,1710820243941,-381.05390589,0.00036053,2]
[319520327,1710820243958,-5119.5684912,0.00036053,2]
[319520328,1710820243967,-500.0,0.00036053,2]
[319520329,1710820243977,-156.77,0.00036208,2]
[319520330,1710820243988,-151.16603036,0.00036331,7]
[319520331,1710820243997,-182.0616026,0.00036362,7]
[319520332,1710820244009,-169.36485231,0.00036417,7]
[319520333,1710820244019,-168.33105284,0.00036471,7]
[319520334,1710820244029,-334.39916058,0.00036879,30]
[319520335,1710820244039,-334.39916054,0.00036879,30]
[319520336,1710820244049,-334.39916054,0.00036879,30]
[319520337,1710820244059,-303.08119858,0.00036879,10]
[319520338,1710820244069,-9698.19545682,0.0003688,2]
[319520339,1710820244081,-4486.65425526,0.0003688,2]
[319520340,1710820244102,-1448.32,0.0003688,2]
[319520341,1710820244126,-332.83180032,0.0003688,2]
[319520342,1710820244139,-699.9999994,0.0003688,2]
[319520343,1710820244151,-317.56749507,0.0003688,2]
[319520344,1710820244164,-595.0381926,0.0003688,2]
[319520396,1710820246487,-267.98996273,0.00032899,4]
[319520397,1710820246497,-713.82297211,0.00032899,4]
[319520398,1710820246507,-288.80471491,0.00032899,4]
[319520399,1710820246518,-550.44176738,0.00032899,4]
[319520400,1710820246528,-171.74,0.0003498,2]
[319520401,1710820246538,-294.64887183,0.00036051,4]
[319520402,1710820246547,-100361.82893634,0.0003688,2]
[319520403,1710820246561,-15694.18683865,0.0003688,2]
[319520404,1710820246573,-423.74481318,0.0003688,2]
[319520405,1710820246584,-524.70466207,0.0003688,2]
[319520407,1710820246615,-13000.0,0.0003688,2]
[319520408,1710820246627,-52024.00000002,0.0003688,2]
[319520409,1710820246638,-2479.56667806,0.0003688,2]
[319520410,1710820246662,-629.27928532,0.0003688,2]
[319520411,1710820246678,-2914.714304,0.0003688,2]
[319520412,1710820246690,-1881.128001,0.0003688,2]
[319520413,1710820246705,-68610.88011599,0.0003688,2]
[319520414,1710820246716,-16210.27422634,0.0003688,2]
[319520415,1710820246727,-340.70254911,0.0003688,2]
[319520416,1710820246747,-1626.6906125,0.0003688,2]
[319520417,1710820246758,-2127.57608946,0.0003688,2]
[319520418,1710820246772,-87806.55407411,0.0003688,2]
[319520419,1710820246783,-15821.09319616,0.0003688,2]
[319520420,1710820246798,-12267.11987495,0.0003688,2]
[319520421,1710820246809,-131087.86217038,0.0003688,2]
[319520422,1710820246820,-995.733,0.0003688,2]
[319520423,1710820246880,-5686.98448303,0.0003688,2]
[319520425,1710820261999,405.96324163,0.00014466,2]
[319520426,1710820269985,125004.12820639,0.00014,2]
[319520427,1710820387610,30583.07122282,0.00015,2]
[319520428,1710820441465,3015164.94448271,0.00014,2]
[319520432,1710820621061,-544.14401604,0.00015245,2]
[319520433,1710820621089,-287.51784537,0.00015245,2]
[319520434,1710820621169,-55.38054417,0.00015245,2]
[319520435,1710820621178,-155.0,0.00015246,2]
[319520436,1710820621188,-333.76347187,0.00015247,2]
[319520437,1710820621207,-26.85609383,0.00015247,2]
[319520438,1710820621218,-316.04229571,0.00015248,2]
[319520441,1710821187139,4829.53829176,0.00021,30]
[319520442,1710821223603,258.07404195,0.00023225,100]
[319520444,1710821352482,19872.09131627,0.00014902,2]
[319520445,1710821355561,158.13291202,0.00015,2]
[319520446,1710821355993,155.0,0.00015,2]
[319520447,1710821356882,204.9621333,0.00015,2]
[319520448,1710821361973,1053.13673053,0.00015,2]
[319520449,1710821370608,342.89838954,0.00015,2]
[319520450,1710821375454,499.05442867,0.00015,2]
[319520451,1710821377176,3359.13045759,0.00015,2]
[319520452,1710821384882,522.56926041,0.00015,2]
[319520453,1710821397197,155.0,0.00015,2]
[319520486,1710821432223,-783.00202095,0.00015001,2]
[319520489,1710821432233,-147.88652551,0.00015001,2]
[319520495,1710821432246,-3852.58373375,0.00015001,2]
[319520499,1710821432255,-403.5154761,0.00015001,2]
[319520503,1710821432265,-1451.0,0.00015002,2]
[319520507,1710821432274,-150.0,0.00015003,2]
[319520510,1710821432283,-158.63535479,0.00015032,2]
[319520513,1710821432293,-40.4469613,0.00015142,2]
[319520524,1710821432435,-1813.6192387,0.00015142,2]
[319520525,1710821432444,-499.99,0.00015142,2]
[319520526,1710821432454,-1077.03660404,0.00015248,10]
[319520527,1710821432464,-2447.25723126,0.0001527,2]
[319520528,1710821432568,-2093.19078834,0.0001527,2]
[319520529,1710821432577,-280.41,0.0001527,2]
[319520530,1710821432587,-150.99,0.0001527,2]
[319520531,1710821432596,-150.99,0.0001527,2]
[319520532,1710821432605,-1216.73937758,0.00016502,2]
[319520533,1710821432615,-210.0,0.00016503,2]
[319520534,1710821432625,-181.68,0.0001657,2]
[319520535,1710821432634,-3509.75,0.0001657,2]
[319520537,1710821432644,-543.05875866,0.00017763,2]
[319520538,1710821432653,-2000.0,0.00018,2]
[319520539,1710821432662,-8254.76976846,0.000187,2]
[319520540,1710821432671,-158.13291202,0.00019018,2]
[319520541,1710821432680,-164.35,0.00019019,2]
[319520542,1710821432689,-363.4667793,0.000195,2]
[319520543,1710821432699,-440.49656693,0.00019851,2]
[319520545,1710821432708,-1460.49148671,0.00019851,2]
[319520547,1710821432719,-342.89838954,0.00019851,2]
[319520549,1710821432729,-204.76472006,0.00019852,2]
[319520551,1710821432738,-229.87705536,0.00019852,2]
[319520553,1710821432748,-1465.99980728,0.00019853,2]
[319520555,1710821432757,-155.0,0.00019997,2]
[319520556,1710821432766,-431.67152772,0.00019998,2]
[319520557,1710821432776,-405.69249849,0.00019999,2]
[319520558,1710821432785,-499.05442867,0.00019999,2]
[319520559,1710821432794,-5000.0,0.0002,2]
[319520560,1710821432803,-700.8,0.00020351,2]
[319520561,1710821432812,-23900.0,0.00020378,2]
[319520562,1710821432821,-1225.72787324,0.0002048,2]
[319520563,1710821432831,-250.0,0.00020596,2]
[319520564,1710821432840,-262.6,0.00020613,2]
[319520566,1710821432850,-1540.61,0.00020614,2]
[319520568,1710821432860,-239.44,0.0002067,2]
[319520570,1710821432869,-200.0,0.00020713,2]
[319520572,1710821432878,-153.85,0.00020724,2]
[319520574,1710821432887,-250.0,0.00020772,2]
[319520576,1710821432896,-252.66,0.00020795,2]
[319520578,1710821432905,-155.55177531,0.00020897,2]
[319520580,1710821432914,-189.93816154,0.00020897,2]
[319520582,1710821432926,-295.878983,0.00020897,2]
[319520584,1710821432935,-740.64054826,0.00020897,2]
[319520585,1710821432944,-343.92073868,0.00020897,2]
[319520586,1710821432956,-366.28745119,0.00020897,2]
[319520587,1710821432965,-1235.1269,0.00020897,2]
[319520588,1710821432974,-160.25297431,0.00020897,2]
[319520589,1710821432983,-155.31237326,0.00020897,2]
[319520590,1710821432993,-2340.93727547,0.00020898,2]
[319520591,1710821433002,-362.55926143,0.00020898,2]
[319520592,1710821433015,-8899.40233418,0.00020899,2]
[319520593,1710821433027,-387.43164013,0.00020899,2]
[319520594,1710821433055,-5042.52328699,0.00020899,2]
[319520595,1710821433064,-444.83296774,0.00020998,2]
[319520596,1710821433073,-262.01378377,0.00020998,2]
[319520597,1710821433083,-1605.8196191,0.00020999,2]
[319520598,1710821433094,-6008.2103424,0.00021,2]
[319520599,1710821433113,-402.73087108,0.00021,2]
[319520600,1710821433125,-531.66046138,0.00021,2]
[319520601,1710821433137,-259.94301548,0.00021,2]
[319520605,1710821438163,-12171.1606139,0.00021,2]
[319520606,1710821438173,-452.01870967,0.00021,2]
[319520607,1710821438182,-1323.03,0.00021004,2]
[319520608,1710821438192,-171.74,0.00021096,2]
[319520609,1710821438201,-164.35,0.00021283,2]
[319520610,1710821438209,-160.84,0.00021918,10]
[319520612,1710821438222,-250.0,0.00021918,2]
[319520614,1710821438231,-154.05,0.00021918,2]
[319520616,1710821438240,-400.0,0.00022026,2]
[319520618,1710821438248,-600.0,0.000225,2]
[319520620,1710821438257,-186.0,0.00022542,30]
[319520622,1710821438266,-752.0,0.000228,2]
[319520624,1710821438275,-687.0,0.000228,2]
[319520626,1710821438284,-700.8,0.00022895,2]
[319520628,1710821438293,-195.51,0.00022989,2]
[319520630,1710821438303,-180.0,0.00023035,2]
[319520632,1710821438312,-321.77231274,0.00023225,2]
[319520634,1710821438321,-1540.61,0.00023353,2]
[319520636,1710821438330,-164.35,0.00023547,2]
[319520638,1710821438339,-459.27,0.00023791,2]
[319520640,1710821438348,-459.27,0.00023879,2]
[319520642,1710821438357,-459.27,0.00023967,2]
[319520644,1710821438366,-5410.3821272,0.00024,3]
[319520646,1710821438375,-459.27,0.00024054,2]
[319520648,1710821438384,-459.27,0.00024142,2]
[319520650,1710821438393,-459.27,0.00024229,2]
[319520652,1710821438402,-459.27,0.00024317,2]
[319520654,1710821438411,-459.27,0.00024405,2]
[319520656,1710821438421,-459.27,0.00024492,2]
[319520658,1710821438430,-459.27,0.0002458,2]
[319520660,1710821438439,-459.27,0.00024668,2]
[319520662,1710821438449,-459.27,0.00024755,2]
[319520664,1710821438458,-400.0,0.00024779,2]
[319520666,1710821438471,-2500.0,0.000248,2]
[319520668,1710821438480,-459.27,0.00024843,2]
[319520670,1710821438489,-476.44,0.00024851,2]
[319520672,1710821438498,-183.19,0.00024868,2]
[319520674,1710821438508,-30460.23175679,0.000249,2]
[319520676,1710821438520,-4779.52265622,0.000249,2]
[319520678,1710821438541,-2018.10000116,0.000249,2]
[319520679,1710821438553,-941.83137895,0.000249,2]
[319520680,1710821438564,-6877.29744009,0.000249,2]
[319520687,1710821438651,-11371.61516679,0.000249,2]
[319520689,1710821438661,-459.27,0.00024931,2]
[319520691,1710821438670,-216.35,0.00024972,120]
[319520693,1710821438680,-51402.76483321,0.00025,4]
[319520695,1710821438691,-927.061008,0.00025,4]
[319520702,1710821438745,-1738.6710412,0.00025,4]
[319520706,1710821438772,-3331.215,0.00025,4]
[319520708,1710821438784,-18191.19737794,0.00025,4]
[319520714,1710821438826,-359.82567341,0.00025,4]
[319520716,1710821438836,-683.84,0.00025,4]
[319520718,1710821438848,-1081.09602026,0.00025,4]
[319520720,1710821438857,-3040.27810605,0.00025,5]
[319520722,1710821438866,-543.56832934,0.00025,30]
[319520724,1710821438875,-459.27,0.00025018,2]
[319520726,1710821438885,-459.27,0.00025106,2]
[319520728,1710821438894,-459.27,0.00025194,2]
[319520730,1710821438903,-459.27,0.00025281,2]
[319520732,1710821438912,-459.27,0.00025369,2]
[319520734,1710821438921,-291.58149743,0.00025439,2]
[319520738,1710821438950,-409.21850257,0.00025439,2]
[319520740,1710821438959,-459.27,0.00025456,2]
[319520742,1710821438972,-164.35,0.00025811,2]
[319520744,1710821438981,-1540.61,0.00026093,2]
[319520746,1710821438991,-150.68926374,0.00026241,2]
[319520748,1710821439004,-150.68926374,0.00026758,2]
[319520750,1710821439016,-150.93,0.00027084,2]
[319520752,1710821439026,-1326.83,0.00027084,2]
[319520754,1710821439035,-153.623935,0.00027159,2]
[319520756,1710821439044,-150.68926374,0.00027438,2]
[319520758,1710821439053,-400.0,0.00027532,2]
[319520760,1710821439063,-749.8307692,0.00027583,5]
[319520762,1710821439072,-344.26897263,0.00027983,2]
[319520765,1710821439085,-356.53102737,0.00027983,2]
[319520767,1710821439095,-164.35,0.00028075,2]
[319520769,1710821439105,-216.35,0.00028093,120]
[319520771,1710821439116,-189.50615744,0.00028293,2]
[319520773,1710821439125,-742.75860306,0.00028323,2]
[319520775,1710821439137,-1277.55353817,0.00028323,2]
[319520777,1710821439148,-342.155,0.00028323,2]
[319520829,1710821440239,-2831.16731872,0.00028323,2]
[319520830,1710821440248,-1215.60217149,0.00029499,2]
[319520831,1710821440265,-1087.29,0.00029499,2]
[319520832,1710821440304,-713.78777198,0.00029499,2]
[319520833,1710821440315,-304.30028749,0.00029499,2]
[319520834,1710821440327,-364.39315611,0.00029499,2]
[319520835,1710821440338,-443.0859269,0.00029499,2]
[319520836,1710821440347,-439.45895503,0.000295,3]
[319520837,1710821440357,-166.28701666,0.00029581,2]
[319520838,1710821440366,-154.11102107,0.00029744,2]
[319520839,1710821440375,-155.33615522,0.0003,7]
[319520840,1710821440397,-33574.30832918,0.0003,7]
[319520841,1710821440407,-959.45695564,0.0003,2]
[319520842,1710821440417,-5510.17734417,0.0003,15]
[319520843,1710821440427,-155.34266331,0.00030174,4]
[319520844,1710821440438,-5933.72926977,0.00030174,4]
[319520845,1710821440449,-400.0,0.00030285,2]
[319520846,1710821440458,-164.35,0.00030338,2]
[319520847,1710821440470,-700.8,0.00030527,2]
[319520848,1710821440480,-153.85,0.00031086,120]
[319520849,1710821440490,-216.35,0.00031215,120]
[319520850,1710821440500,-6874.0,0.00031604,2]
[319520851,1710821440509,-150.68926374,0.00031767,7]
[319520852,1710821440520,-177.789608,0.00031781,14]
[319520853,1710821440530,-160.84,0.00032192,10]
[319520854,1710821440539,-594.24,0.00032454,2]
[319520855,1710821440549,-164.35,0.00032602,2]
[319520856,1710821440559,-177.789608,0.00032603,14]
[319520857,1710821440568,-13321.1768726,0.000328,2]
[319520858,1710821440580,-1668.17113068,0.000328,2]
[319520859,1710821440611,-9989.46689672,0.000328,2]
[319520860,1710821440621,-262.29,0.000328,2]
[319520861,1710821440631,-700.0,0.000328,11]
[319520862,1710821440640,-333.09693872,0.000328,5]
[319520863,1710821440650,-386.11588002,0.000328,2]
[319520864,1710821440660,-151.67308753,0.000328,2]
[319520865,1710821440669,-154.05,0.00032877,2]
[319520866,1710821440679,-178.23011038,0.00032899,2]
[319520867,1710821440688,-158.63535478,0.00032899,2]
[319520869,1710821440698,-190912.30593522,0.000329,7]
[319520871,1710821440709,-3573.94866039,0.000329,7]
[319520873,1710821440729,-65885.14901241,0.000329,7]
[319520874,1710821440742,-1413.82410275,0.000329,7]
[319520875,1710821440753,-1577.81126408,0.000329,7]
[319520876,1710821440765,-3142.6287096,0.000329,7]
[319520877,1710821440776,-2000.0,0.000329,7]
[319520878,1710821440787,-651.1,0.000329,7]
[319520879,1710821440799,-927.55995207,0.000329,7]
[319520880,1710821440811,-52990.61224602,0.000329,7]
[319520881,1710821440831,-2352.89022271,0.000329,7]
[319520882,1710821440867,-852.94154745,0.000329,7]
[319520883,1710821440879,-510.1508316,0.000329,7]
[319520884,1710821440890,-3401.05834853,0.000329,7]
[319520885,1710821440901,-1100.75413951,0.000329,7]
[319520886,1710821441209,-2235.42856041,0.000329,7]
[319520887,1710821441223,-369.8,0.000329,7]
[319520892,1710821443232,-377.70983038,0.00028322,2]
[319520893,1710821443243,-335.06,0.00028322,2]
[319520909,1710821443383,-3287.70042888,0.00028322,2]
[319520910,1710821443393,-1168.04813349,0.000329,7]
[319520911,1710821443404,-14463.5633517,0.000329,7]
[319520912,1710821443416,-1344.97745662,0.000329,7]
[319520913,1710821443427,-5466.02415411,0.000329,7]
[319520914,1710821443439,-10597.03999987,0.000329,7]
[319520915,1710821443450,-5287.51751739,0.000329,7]
[319520916,1710821443473,-880.8,0.000329,7]
[319520917,1710821443485,-1726.17669812,0.000329,7]
[319520918,1710821443508,-15055.94502395,0.000329,7]
[319520919,1710821443561,-16668.2970407,0.000329,7]
[319520920,1710821443573,-372.762,0.000329,7]
[319520923,1710821443677,-43418.92914861,0.000329,7]
[319520925,1710821443688,-10460.44999998,0.000329,7]
[319520945,1710821446206,-1592.37461381,0.00032899,4]
[319520947,1710821446216,-460.70800898,0.00032899,4]
[319520948,1710821446227,-8230.80038985,0.000329,7]
[319520950,1710821446239,-10201.500005,0.000329,7]
[319520951,1710821446279,-13475.388,0.000329,7]
[319520952,1710821446303,-428.71037682,0.000329,7]
[319520953,1710821446315,-267.22567297,0.000329,7]
[319520954,1710821446326,-326.21077293,0.000329,7]
[319520955,1710821446352,-19491.2615053,0.000329,7]
[319520956,1710821446364,-330.33,0.000329,7]
[319520957,1710821446375,-26946.813,0.000329,7]
[319520958,1710821446398,-1040.45485229,0.000329,7]
[319520959,1710821446410,-2279.79229177,0.000329,7]
[319520960,1710821446429,-606.13570382,0.000329,7]
[319520961,1710821446469,-682.02773268,0.000329,7]
[319520962,1710821446486,-712.68396914,0.000329,7]
[319520963,1710821446499,-556.66598674,0.000329,7]
[319520965,1710821459052,280.84889286,0.00015,2]
[319520966,1710821603281,-155.0,0.00021797,2]
[319520967,1710821603306,-2164.097004,0.00021797,2]
[319520968,1710821603333,-2500.0,0.00021797,2]
[319520969,1710821603360,-200.86359742,0.00021798,2]
[319520970,1710821603385,-4000.47025926,0.00021798,2]
[319520971,1710821603408,-342.89838954,0.00021798,2]
[319520972,1710821603431,-5000.0,0.00021798,2]
[319520973,1710821603455,-155.0,0.00021798,2]
[319520974,1710821603480,-273.38120769,0.00021798,2]
[319520975,1710821603506,-458.28954209,0.000218,5]
[319520976,1710821684215,-750.0,0.00017,3]
[319520977,1710822055845,-23276.39420153,0.00025,30]
[319520993,1710822631987,-381.60085948,0.00021699,2]
[319520994,1710822631998,-476.83533982,0.000217,2]
[319520995,1710822632015,-681.67229273,0.000217,2]
[319520996,1710822632059,-10730.72726745,0.000217,2]
[319520997,1710822632068,-2600.28936312,0.00021799,2]
[319520998,1710822632078,-2036.4026815,0.00021799,2]